bitfinex/quotes_ETHUSD_20240721
["timestamp","ask_amount","ask_price","bid_price","bid_amount"]
[1721554930091,0.11427706,3503.7,3503.2,2.85451]
[1721554930313,0.11427706,3503.7,3503.4,2.4863]
[1721554931667,0.11427706,3503.7,3503.4,2.4749]
[1721554939232,0.11427706,3503.7,3503.5,3.90358296]
[1721554939577,0.11427706,3503.7,3503.6,11.05526125]
[1721554940061,0.11427706,3503.7,3503.6,10.45873453]
[1721554940373,0.11427706,3503.7,3503.6,11.74915393]
[1721554940673,0.11427706,3503.7,3503.6,12.34467808]
[1721554940824,0.11427706,3503.7,3503.6,7.01004355]
[1721554941023,0.11427706,3503.7,3503.6,9.49030518]
[1721554941430,0.11427706,3503.7,3503.6,8.89478103]
[1721554941649,0.11427706,3503.7,3503.6,11.74898103]
[1721554941847,0.11427706,3503.7,3503.6,12.34423597]
[1721554942321,0.11427706,3503.7,3503.6,9.49003597]
[1721554942756,0.11427706,3503.7,3503.6,11.74898103]
[1721554942962,0.11427706,3503.7,3503.6,12.34423597]
[1721554943783,0.11427706,3503.7,3503.6,11.74898103]
[1721554943985,0.11427706,3503.7,3503.6,12.34381358]
[1721554944267,0.11427706,3503.7,3503.6,11.74877468]
[1721554944476,0.11427706,3503.7,3503.6,12.34343019]
[1721554946370,0.11427706,3503.7,3503.6,11.74877468]
[1721554947238,0.11427706,3503.7,3503.6,11.7488043]
[1721554947853,0.11427706,3503.7,3503.6,8.8946043]
[1721554948382,0.11427706,3503.7,3503.6,4.55235336]
[1721554948547,0.11427706,3503.7,3503.6,7.40655336]
[1721554949167,0.11427706,3503.7,3503.6,6.4145194]
[1721554949374,0.11427706,3503.7,3503.6,2.2699]
[1721554950497,0.11427706,3503.7,3503.6,5.1241]
[1721554959083,0.11427706,3503.7,3503.6,7.9783]
[1721554963145,0.11427706,3503.7,3503.6,5.1241]
[1721554963381,0.11427706,3503.7,3503.6,5.97102037]
[1721554965499,0.11427706,3503.7,3503.6,8.82522037]
[1721554966463,0.11427706,3503.7,3503.6,11.3053154]
[1721554967965,0.11427706,3503.7,3503.6,9.81725838]
[1721554968579,0.11427706,3503.7,3503.6,11.30534376]
[1721554968865,0.11427706,3503.7,3503.6,11.30534883]
[1721554969400,0.11427706,3503.7,3503.6,8.82522037]
[1721554969600,0.11427706,3503.7,3503.6,9.81729633]
[1721554969904,0.11427706,3503.7,3503.6,9.81728242]
[1721554972389,0.11427706,3503.7,3503.6,11.30539472]
[1721554972632,0.11427706,3503.7,3503.6,8.82522037]
[1721554972831,0.11427706,3503.7,3503.6,9.8172954]
[1721554973305,0.11427706,3503.7,3503.6,11.30536495]
[1721554973891,0.11427706,3503.7,3503.6,6.18126495]
[1721554974113,0.11427706,3503.7,3503.6,4.6931954]
[1721554974758,0.11427706,3503.7,3503.6,3.70112037]
[1721554975084,0.11427706,3503.7,3503.6,3.84630439]
[1721554975294,0.11427706,3503.7,3503.6,2.8542]
[1721554975592,0.11427706,3503.7,3503.6,3.84631439]
[1721554975945,0.11427706,3503.7,3503.6,3.84631463]
[1721554977479,0.11427706,3503.7,3503.6,0.99211463]
[1721554978109,0.11427706,3503.7,3503.4,5.85431]
[1721554978255,0.11427706,3503.7,3503.5,2.48034283]
[1721554978456,0.11427706,3503.7,3503.5,3.0]
[1721554979281,0.11427706,3503.7,3503.5,5.85426]
[1721554979453,0.11427706,3503.7,3503.6,0.9921244]
[1721554979649,0.11427706,3503.7,3503.6,3.8463244]
[1721554979878,0.11427706,3503.7,3503.6,2.8542]
[1721554980793,0.11427706,3503.7,3503.5,4.19400592]
[1721554981809,0.11427706,3503.7,3503.5,3.0]
[1721554982392,0.11427706,3503.7,3503.6,0.99217436]
[1721554984981,0.11427706,3503.7,3503.5,3.0]
[1721554986096,0.11427706,3503.7,3503.4,0.59465551]
[1721554986416,2.85428,3503.5,3503.4,0.59465551]
[1721554986614,3.39769571,3503.5,3503.4,0.59465551]
[1721554989907,0.54341571,3503.5,3503.4,0.59465551]
[1721554990245,0.54341571,3503.5,3502.9,10.30475]
[1721554990415,5.43406706,3503.7,3502.9,10.30475]
[1721554991537,5.43406706,3503.7,3503.0,2.85467]
[1721554991712,0.11427706,3503.7,3503.3,2.85439]
[1721554992102,0.11427706,3503.7,3503.4,2.85431]
[1721554993324,0.11427706,3503.7,3503.1,2.85454]
[1721554993744,0.11427706,3503.7,3503.2,2.85452]
[1721554994737,0.11427706,3503.7,3503.3,2.85444]
[1721554994944,0.11427706,3503.7,3503.4,2.85431]
[1721555005364,0.11427706,3503.7,3503.5,2.85428]
[1721555007336,0.11427706,3503.7,3503.4,2.85436]
[1721555009569,0.11427706,3503.7,3503.1,2.8546]
[1721555010672,2.85439,3503.4,3502.9,7.45]
[1721555011569,2.85453,3503.2,3502.9,7.45]
[1721555013079,2.8544,3503.4,3502.9,7.45]
[1721555013448,5.16528,3503.5,3502.9,7.45]
[1721555013780,2.85437,3503.4,3502.9,7.45]
[1721555013987,3.75243118,3503.4,3502.9,7.45]
[1721555014155,2.85437,3503.4,3502.9,7.45]
[1721555014350,2.85437,3503.4,3502.7,5.27871]
[1721555016983,2.85453,3503.3,3502.5,15.72885]
[1721555017283,2.4968,3503.0,3502.5,7.45]
[1721555020384,2.4968,3503.0,3502.4,2.85515]
[1721555025146,2.4968,3503.0,3502.3,22.52526]
[1721555025678,2.4968,3503.0,3502.4,0.99247348]
[1721555025902,2.4968,3503.0,3502.3,22.52526]
[1721555026213,2.4968,3503.0,3502.4,0.99247369]
[1721555026510,2.4968,3503.0,3502.3,2.85526]
[1721555026658,2.4968,3503.0,3502.4,0.99247056]
[1721555026863,2.4968,3503.0,3502.3,2.85526]
[1721555027109,2.4968,3503.0,3502.4,0.99246292]
[1721555027403,2.4968,3503.0,3502.3,2.85526]
[1721555028714,2.4968,3503.0,3502.4,0.99247237]
[1721555028883,2.4968,3503.0,3502.3,2.85526]
[1721555029069,2.4968,3503.0,3502.4,0.99247217]
[1721555029268,2.4968,3503.0,3502.3,2.85526]
[1721555029537,2.4968,3503.0,3502.4,0.99247237]
[1721555029699,2.4968,3503.0,3502.3,2.85526]
[1721555029909,5.35149,3503.0,3502.4,0.99247226]
[1721555030207,5.35149,3503.0,3502.3,2.85526]
[1721555032766,5.35149,3503.0,3502.4,0.99247217]
[1721555033005,2.4968,3503.0,3502.4,2.85517]
[1721555036590,2.4968,3503.0,3502.5,2.85509]
[1721555036785,5.33343,3503.2,3502.5,2.85509]
[1721555037000,5.33343,3503.2,3502.6,2.855]
[1721555037203,5.33343,3503.2,3502.5,2.85504]
[1721555037374,2.85453,3503.2,3502.6,2.2913]
[1721555037712,5.33327,3503.4,3502.6,3.1383]
[1721555038124,2.85437,3503.4,3502.6,3.1383]
[1721555039403,2.85437,3503.4,3502.8,2.85484]
[1721555040730,5.88312,3503.6,3502.8,2.85484]
[1721555040909,0.88514371,3503.5,3502.8,2.85484]
[1721555041285,3.73945371,3503.5,3502.8,2.85484]
[1721555042131,3.73945371,3503.5,3502.9,2.85475]
[1721555044725,0.88514371,3503.5,3502.9,2.85475]
[1721555044932,5.8831,3503.6,3502.9,2.85475]
[1721555045628,3.0289,3503.6,3502.6,2.2913]
[1721555045828,3.0289,3503.6,3502.5,7.45]
[1721555045829,2.2719,3503.1,3502.5,7.45]
[1721555046485,2.2719,3503.1,3502.5,10.30509]
[1721555047418,5.924597,3503.1,3502.5,7.45]
[1721555049104,3.069987,3503.1,3502.5,7.45]
[1721555049439,2.2719,3503.1,3502.5,7.45]
[1721555050104,2.2719,3503.1,3502.4,2.85515]
[1721555050303,2.2719,3503.1,3502.5,0.99246708]
[1721555050500,2.2719,3503.1,3502.4,2.85515]
[1721555050701,2.2719,3503.1,3502.5,2.48113192]
[1721555050919,5.12653,3503.1,3502.4,2.85515]
[1721555051128,5.12653,3503.1,3502.5,0.99246928]
[1721555051345,5.12653,3503.1,3502.4,2.85515]
[1721555051500,5.12653,3503.1,3502.5,2.48117206]
[1721555051702,5.12653,3503.1,3502.4,2.85515]
[1721555051907,5.12653,3503.1,3502.5,2.48117133]
[1721555052104,5.12653,3503.1,3502.4,2.85515]
[1721555052406,5.12653,3503.1,3502.5,2.48117348]
[1721555052638,5.12653,3503.1,3502.4,2.85515]
[1721555052939,5.12653,3503.1,3502.5,2.4811982]
[1721555053108,5.12653,3503.1,3502.6,0.99247919]
[1721555053440,5.33379,3503.3,3502.4,0.5954307]
[1721555053641,5.33379,3503.3,3502.5,3.23950436]
[1721555053843,5.33379,3503.3,3502.6,5.33607661]
[1721555054003,5.33379,3503.3,3502.4,3.4505907]
[1721555054004,2.85462,3503.1,3502.4,3.4505907]
[1721555054404,2.85462,3503.1,3502.5,2.48117653]
[1721555054708,2.85462,3503.1,3502.6,0.99247061]
[1721555054933,2.85462,3503.1,3502.4,3.4505907]
[1721555055139,2.85462,3503.1,3502.5,2.48117733]
[1721555055440,2.4793,3503.0,3502.6,2.48119524]
[1721555055608,2.4793,3503.0,3502.4,3.4505907]
[1721555055937,2.4793,3503.0,3502.5,2.48120785]
[1721555056241,2.4793,3503.0,3502.6,2.48120785]
[1721555056450,2.4793,3503.0,3502.7,0.99248302]
[1721555056747,2.4793,3503.0,3502.4,3.4505907]
[1721555056748,2.4793,3503.0,3502.5,0.5954307]
[1721555057069,2.4793,3503.0,3502.6,2.48117633]
[1721555057219,2.4793,3503.0,3502.7,0.99247053]
[1721555057405,2.4793,3503.0,3502.5,0.5954307]
[1721555057605,2.4793,3503.0,3502.6,2.48117573]
[1721555057903,2.4793,3503.0,3502.7,0.99247029]
[1721555058215,2.4793,3503.0,3502.5,0.5954307]
[1721555058411,2.4793,3503.0,3502.6,2.48117655]
[1721555058649,2.4793,3503.0,3502.7,0.99247062]
[1721555058799,2.4793,3503.0,3502.5,0.5954307]
[1721555059003,2.4793,3503.0,3502.6,2.48119883]
[1721555059198,2.4793,3503.0,3502.7,0.99247953]
[1721555059436,2.4793,3503.0,3502.5,0.5954307]
[1721555059676,2.4793,3503.0,3502.6,2.48119687]
[1721555059821,2.4793,3503.0,3502.7,0.99247875]
[1721555060188,2.4793,3503.0,3502.5,0.5954307]
[1721555060339,2.4793,3503.0,3502.6,2.48119337]
[1721555060519,2.4793,3503.0,3502.7,0.99247735]
[1721555060718,2.4793,3503.0,3502.5,0.5954307]
[1721555060920,2.85478,3502.9,3502.6,2.48119338]
[1721555061136,2.85478,3502.9,3502.7,0.99247735]
[1721555061415,2.85478,3502.9,3502.4,0.5954307]
[1721555061666,2.85478,3502.9,3502.5,2.4812561]
[1721555061958,2.4793,3503.0,3502.6,2.4812561]
[1721555062170,2.4793,3503.0,3502.4,0.5954307]
[1721555062376,2.4793,3503.0,3502.5,2.48127292]
[1721555062558,2.4793,3503.0,3502.4,0.5954307]
[1721555062559,2.4793,3503.0,3502.6,2.48127292]
[1721555062739,2.4793,3503.0,3502.7,0.99250917]
[1721555062946,2.4793,3503.0,3502.4,0.5954307]
[1721555063130,5.33401,3503.0,3502.5,2.48126205]
[1721555063332,5.33401,3503.0,3502.6,2.48126205]
[1721555063653,5.33401,3503.0,3502.7,0.9925025]
[1721555063974,5.33401,3503.0,3502.4,0.5954307]
[1721555064178,5.33401,3503.0,3502.5,2.48126508]
[1721555064342,5.33401,3503.0,3502.6,2.48126508]
[1721555064679,5.33401,3503.0,3502.7,0.99250352]
[1721555064983,5.33401,3503.0,3502.4,0.904106]
[1721555065194,5.33401,3503.0,3502.5,2.48125972]
[1721555065479,5.33401,3503.0,3502.6,2.48125972]
[1721555065684,5.33401,3503.0,3502.4,0.904106]
[1721555065882,5.33401,3503.0,3502.5,2.48124998]
[1721555066085,5.33401,3503.0,3502.6,2.48124998]
[1721555066282,5.33401,3503.0,3502.7,0.99250365]
[1721555066460,5.33401,3503.0,3502.4,0.5954307]
[1721555066994,5.33401,3503.0,3502.5,2.48124833]
[1721555067200,5.33401,3503.0,3502.6,0.99249933]
[1721555067504,5.33401,3503.0,3502.4,0.5954307]
[1721555067658,5.33401,3503.0,3502.5,2.48126742]
[1721555067858,5.33401,3503.0,3502.6,0.99250697]
[1721555068063,5.33401,3503.0,3502.4,0.5954307]
[1721555068299,5.33401,3503.0,3502.5,2.48125713]
[1721555068491,5.33401,3503.0,3502.6,0.99250285]
[1721555068697,5.33401,3503.0,3502.4,0.5954307]
[1721555069012,5.33401,3503.0,3502.5,2.48125365]
[1721555069314,5.33401,3503.0,3502.6,2.48125365]
[1721555069601,5.33401,3503.0,3502.7,0.99250146]
[1721555069759,5.33401,3503.0,3502.5,0.5954307]
[1721555069966,3.40425,3503.6,3502.5,0.5954307]
[1721555069967,5.33299,3503.4,3502.6,2.48113243]
[1721555070197,3.40447,3503.3,3502.7,2.48113243]
[1721555070455,3.40447,3503.3,3502.6,3.54847992]
[1721555070659,3.40447,3503.3,3502.7,2.48109205]
[1721555070860,3.40447,3503.3,3502.8,0.99242712]
[1721555071106,3.40447,3503.3,3502.6,6.40349992]
[1721555071318,3.40447,3503.3,3502.7,2.4810896]
[1721555071462,3.40447,3503.3,3502.6,6.40349992]
[1721555071663,3.40447,3503.3,3502.7,2.48109013]
[1721555071871,3.40447,3503.3,3502.6,6.40349992]
[1721555072157,3.40447,3503.3,3502.7,2.48107576]
[1721555072464,3.40447,3503.3,3502.6,6.40349992]
[1721555072669,3.40447,3503.3,3502.7,2.48107585]
[1721555072964,3.40447,3503.3,3502.6,6.40349992]
[1721555073385,3.40447,3503.3,3502.7,0.9924301]
[1721555073584,3.40447,3503.3,3502.6,5.33632]
[1721555073768,3.40447,3503.3,3502.7,0.99246876]
[1721555073972,3.40447,3503.3,3502.6,5.33632]
[1721555074193,3.40447,3503.3,3502.7,0.99246857]
[1721555074398,3.40447,3503.3,3502.6,5.33632]
[1721555074566,3.40447,3503.3,3502.7,0.99247451]
[1721555074784,3.40447,3503.3,3502.6,5.33632]
[1721555075121,3.40447,3503.3,3502.7,0.99247455]
[1721555075328,3.40447,3503.3,3502.3,6.74839605]
[1721555075329,2.2923,3503.2,3502.4,3.4505707]
[1721555075478,2.2923,3503.2,3502.5,2.48124868]
[1721555075681,2.8547,3503.0,3502.6,0.99249947]
[1721555075983,2.8547,3503.0,3502.3,6.4506307]
[1721555076183,2.8547,3503.0,3502.4,4.56645637]
[1721555076429,2.8547,3503.0,3502.5,2.48128976]
[1721555076578,2.8547,3503.0,3502.4,2.08515967]
[1721555076783,2.8547,3503.0,3502.5,2.48127933]
[1721555076983,2.8547,3503.0,3502.6,0.99251047]
[1721555077184,2.8547,3503.0,3502.4,2.08515967]
[1721555077496,2.8547,3503.0,3502.5,2.48127866]
[1721555077686,2.8547,3503.0,3502.4,2.08515967]
[1721555077887,2.8547,3503.0,3502.5,2.48127625]
[1721555078099,2.8547,3503.0,3502.4,2.08515967]
[1721555078296,5.14688,3503.2,3502.5,2.48127886]
[1721555078484,5.14688,3503.2,3502.4,4.94032967]
[1721555078684,5.14688,3503.2,3502.5,2.48127833]
[1721555078917,2.85462,3503.1,3502.4,4.94032967]
[1721555079122,2.85462,3503.1,3502.5,2.48127778]
[1721555079419,2.85462,3503.1,3502.4,4.94032967]
[1721555079585,2.85462,3503.1,3502.5,2.48127826]
[1721555079799,2.85462,3503.1,3502.6,0.99251026]
[1721555079995,2.85462,3503.1,3502.4,2.85517]
[1721555080303,2.85462,3503.1,3502.5,2.48127618]
[1721555080504,2.85462,3503.1,3502.6,0.99251047]
[1721555080736,2.85462,3503.1,3502.4,4.94031868]
[1721555080949,2.85462,3503.1,3502.5,2.48127512]
[1721555081115,2.8547,3503.0,3502.6,0.99251005]
[1721555081322,2.8547,3503.0,3502.3,7.2976907]
[1721555081601,2.8547,3503.0,3502.4,2.48127708]
[1721555081805,2.8547,3503.0,3502.5,2.48127708]
[1721555082002,2.8547,3503.0,3502.6,0.99251083]
[1721555082853,2.8547,3503.0,3502.3,9.50194152]
[1721555083064,2.8547,3503.0,3502.4,2.48127718]
[1721555083355,2.8547,3503.0,3502.5,2.48127718]
[1721555083517,2.8547,3503.0,3502.6,0.99251087]
[1721555083716,2.8547,3503.0,3502.4,1.05609344]
[1721555083917,2.8547,3503.0,3502.5,2.48127463]
[1721555084113,2.8547,3503.0,3502.6,0.99250985]
[1721555084314,2.8547,3503.0,3502.4,1.05609344]
[1721555084631,2.8547,3503.0,3502.5,2.48127225]
[1721555084806,2.8547,3503.0,3502.6,0.9925089]
[1721555085011,2.8547,3503.0,3502.4,1.05609344]
[1721555085258,2.8547,3503.0,3502.5,2.48128087]
[1721555085428,2.8547,3503.0,3502.6,0.99251235]
[1721555085644,2.8547,3503.0,3502.4,1.65152414]
[1721555085834,2.8547,3503.0,3502.5,2.48127005]
[1721555086007,2.8547,3503.0,3502.4,1.65152414]
[1721555086213,2.8547,3503.0,3502.5,2.48127061]
[1721555086441,2.8547,3503.0,3502.6,0.99250816]
[1721555086646,2.8547,3503.0,3502.4,1.65152414]
[1721555086848,2.8547,3503.0,3502.5,2.48128048]
[1721555087031,2.8547,3503.0,3502.6,0.99251219]
[1721555087246,2.8547,3503.0,3502.4,1.65152414]
[1721555087437,2.8547,3503.0,3502.5,2.48127457]
[1721555087770,2.8547,3503.0,3502.6,0.99250983]
[1721555088066,2.8547,3503.0,3502.4,1.65152414]
[1721555088272,2.8547,3503.0,3502.5,2.48127393]
[1721555088427,2.8547,3503.0,3502.6,0.99250957]
[1721555088628,2.8547,3503.0,3502.4,1.65152414]
[1721555088961,2.8547,3503.0,3502.5,2.4812928]
[1721555089124,2.8547,3503.0,3502.6,0.99251712]
[1721555089352,2.8547,3503.0,3502.4,1.65152414]
[1721555089644,2.8547,3503.0,3502.5,2.48127637]
[1721555089852,2.8547,3503.0,3502.6,0.99251055]
[1721555090037,2.8547,3503.0,3502.4,1.65152414]
[1721555090242,2.8547,3503.0,3502.5,2.48127163]
[1721555090441,2.8547,3503.0,3502.6,0.99250865]
[1721555090626,2.8547,3503.0,3502.4,1.65152414]
[1721555090835,2.85532,3502.3,3502.1,8.0454307]
[1721555091032,5.14762,3502.3,3501.9,0.5954307]
[1721555091276,2.85536,3502.2,3502.0,2.48165652]
[1721555091444,2.85536,3502.2,3501.7,20.2654307]
[1721555091644,2.85536,3502.2,3501.8,2.48171022]
[1721555091960,2.85536,3502.2,3501.9,2.48171022]
[1721555092168,2.85536,3502.2,3501.7,20.2654307]
[1721555092676,2.85536,3502.2,3501.8,2.48171755]
[1721555092883,2.85536,3502.2,3501.9,0.99268702]
[1721555093184,2.85551,3502.0,3501.7,20.2654307]
[1721555093335,2.85551,3502.0,3501.7,19.67]
[1721555094643,2.85551,3502.0,3501.2,6.4515307]
[1721555094850,2.85551,3502.0,3501.3,5.48204062]
[1721555095062,2.85551,3502.0,3501.4,0.99281625]
[1721555095258,2.85551,3502.0,3501.3,5.85607]
[1721555095462,2.85551,3502.0,3501.1,10.5535]
[1721555095463,2.85568,3501.8,3501.4,0.99281585]
[1721555095667,2.85575,3501.7,3501.1,8.0454307]
[1721555095838,2.85575,3501.7,3501.1,10.30624]
[1721555096030,2.3679,3501.9,3501.1,11.5200147]
[1721555096031,5.22353,3501.9,3501.1,11.5200147]
[1721555096262,2.85569,3501.8,3501.1,11.5200147]
[1721555097745,2.3679,3501.9,3501.2,0.847]
[1721555097947,5.22339,3502.1,3501.4,0.847]
[1721555098166,0.522339,3502.0,3501.3,2.85602]
[1721555098344,5.22339,3502.1,3501.3,2.85602]
[1721555102534,5.22339,3502.1,3501.4,2.85598]
[1721555102737,2.3679,3502.1,3501.5,2.8559]
[1721555103081,5.22333,3502.1,3501.3,2.85607]
[1721555103288,2.85552,3502.0,3501.3,2.85607]
[1721555103768,2.85552,3502.0,3501.2,2.2565]
[1721555103769,2.85552,3502.0,3501.4,2.85598]
[1721555104535,3.175759,3502.1,3501.4,2.85598]
[1721555104736,2.3679,3502.1,3501.6,2.85583]
[1721555105964,2.3679,3502.1,3501.7,2.85574]
[1721555106187,2.3679,3502.1,3501.5,2.8559]
[1721555107577,2.3679,3502.1,3501.4,2.85598]
[1721555108075,2.85553,3502.0,3501.2,5.11265]
[1721555108377,2.85553,3502.0,3501.3,2.85604]
[1721555110455,2.3679,3502.1,3501.4,2.85598]
[1721555110807,2.3679,3502.1,3501.5,2.8559]
[1721555111098,2.3679,3502.1,3501.2,5.95965]
[1721555111099,2.85503,3502.6,3501.8,2.85567]
[1721555111253,2.85512,3502.5,3501.7,2.2565]
[1721555111458,5.13846,3502.4,3501.6,2.85582]
[1721555111864,5.13846,3502.4,3501.5,2.85589]
[1721555112069,5.13846,3502.4,3501.6,0.600889]
[1721555113313,5.13846,3502.4,3501.8,2.85567]
[1721555117611,2.2832,3502.4,3501.8,2.85567]
[1721555117966,2.2832,3502.4,3501.9,2.85558]
[1721555118168,5.11026,3502.7,3502.0,2.85549]
[1721555118364,0.55,3502.6,3502.0,2.85549]
[1721555118666,0.55,3502.6,3502.1,2.85541]
[1721555118887,5.11026,3502.7,3502.1,2.85541]
[1721555119516,2.85478,3502.9,3502.2,2.85531]
[1721555119855,0.55,3502.8,3502.2,2.85531]
[1721555119969,5.11008,3502.9,3502.3,0.571072]
[1721555119970,2.2553,3502.9,3502.3,0.571072]
[1721555120313,5.10992,3503.1,3502.4,2.85512]
[1721555120610,0.55,3503.0,3502.4,2.85512]
[1721555121586,0.55,3503.0,3502.5,2.85503]
[1721555123403,0.55,3503.0,3502.6,2.85499]
[1721555123626,2.2553,3503.1,3502.5,2.85503]
[1721555125250,2.85471,3503.0,3502.3,2.85526]
[1721555125415,3.08024,3503.0,3502.3,2.85526]
[1721555130448,2.85471,3503.0,3502.3,2.85526]
[1721555132253,2.2553,3503.1,3502.5,2.85509]
[1721555132540,5.10991,3503.1,3502.5,2.85509]
[1721555134952,2.85478,3502.9,3502.3,2.85526]
[1721555136448,2.3149,3502.6,3502.1,7.45]
[1721555136767,2.8551,3502.5,3502.1,7.45]
[1721555137971,5.16992,3502.6,3502.1,7.45]
[1721555139237,5.16992,3502.6,3501.9,2.85558]
[1721555139647,5.16992,3502.6,3502.0,2.8555]
[1721555139856,2.8549,3502.8,3502.1,2.85541]
[1721555140032,2.85475,3503.0,3502.3,2.85521]
[1721555142263,2.85479,3502.9,3502.3,2.85521]
[1721555143932,2.85486,3502.8,3502.2,2.2748]
[1721555146234,2.85501,3502.7,3502.2,2.2748]
[1721555147532,2.85502,3502.6,3502.2,2.2748]
[1721555148188,2.85502,3502.6,3502.0,2.2748]
[1721555149987,2.85511,3502.5,3502.0,2.2748]
[1721555151891,2.85494,3502.7,3502.0,5.13029]
[1721555152064,2.85494,3502.7,3502.0,6.758592]
[1721555152956,2.2637,3503.0,3502.3,2.85524]
[1721555153161,2.85484,3502.9,3502.1,2.85536]
[1721555153461,2.85491,3502.8,3502.1,2.85536]
[1721555156588,2.85491,3502.8,3502.2,2.85534]
[1721555156806,5.11846,3503.0,3502.2,2.85534]
[1721555157003,2.2637,3503.0,3502.2,2.85534]
[1721555158315,2.85478,3502.9,3502.2,2.85534]
[1721555161678,2.85486,3502.8,3502.2,2.85534]
[1721555162707,2.85494,3502.7,3502.1,2.85542]
[1721555166783,2.85494,3502.7,3502.0,2.2748]
[1721555167914,0.797342,3502.7,3502.0,2.2748]
[1721555168076,2.2637,3503.0,3502.0,2.2748]
[1721555168275,0.29826736,3502.9,3502.0,2.2748]
[1721555168512,2.2637,3503.0,3502.0,2.2748]
[1721555168742,0.29826777,3502.9,3502.0,2.2748]
[1721555168918,2.2637,3503.0,3502.0,2.2748]
[1721555169105,0.52463777,3502.9,3502.0,2.2748]
[1721555169441,2.85512,3502.5,3502.0,2.2748]
[1721555173001,2.2973,3502.6,3501.8,2.9418307]
[1721555173198,2.2973,3502.6,3501.7,7.45]
[1721555173199,2.85548,3502.1,3501.7,7.45]
[1721555173737,2.85552,3502.0,3501.7,7.45]
[1721555175102,2.85552,3502.0,3501.6,2.3464]
[1721555175435,2.85541,3502.2,3501.6,2.3464]
[1721555175735,2.85543,3502.1,3501.6,2.3464]
[1721555177719,2.85528,3502.3,3501.6,2.3464]
[1721555178033,2.85528,3502.3,3501.7,3.33914954]
[1721555178235,2.85528,3502.3,3501.8,0.99272008]
[1721555178435,2.85528,3502.3,3501.7,3.1934]
[1721555178738,2.85503,3502.6,3501.8,0.99272042]
[1721555178939,2.8552,3502.4,3501.7,3.70275]
[1721555179131,2.8552,3502.4,3501.8,3.33912017]
[1721555179316,2.8552,3502.4,3501.8,2.3464]
[1721555180971,2.85526,3502.3,3501.8,2.3464]
[1721555181125,2.85535,3502.2,3501.8,2.3464]
[1721555182828,2.85519,3502.4,3501.8,2.3464]
[1721555183452,2.85527,3502.3,3501.8,2.3464]
[1721555187288,2.85535,3502.2,3501.8,2.3464]
[1721555187934,2.85553,3502.0,3501.5,2.3464]
[1721555188165,2.85536,3502.2,3501.5,2.3464]
[1721555188654,0.285519,3502.3,3501.5,2.3464]
[1721555188832,2.85577,3501.7,3501.2,9.7964]
[1721555189045,2.85577,3501.7,3501.3,0.99285945]
[1721555189369,2.85577,3501.7,3501.2,2.3464]
[1721555191274,2.85589,3501.6,3501.2,2.3464]
[1721555193044,2.85561,3501.9,3501.2,2.3464]
[1721555193045,2.85571,3501.8,3501.2,2.3464]
[1721555193581,2.85571,3501.8,3501.2,3.01091507]
[1721555194201,2.85539,3502.2,3501.3,2.85602]
[1721555194381,2.85539,3502.2,3501.4,2.4281]
[1721555194747,2.85557,3502.0,3501.4,2.4281]
[1721555195350,2.85559,3501.9,3501.4,2.4281]
[1721555195795,2.85568,3501.8,3501.4,2.4281]
[1721555196857,2.85568,3501.8,3501.2,2.4281]
[1721555198805,2.85586,3501.6,3501.2,2.4281]
[1721555199975,2.85571,3501.8,3501.2,2.4281]
[1721555200176,2.85571,3501.8,3501.3,2.4281]
[1721555206116,2.85581,3501.7,3501.3,2.4281]
[1721555206520,2.85589,3501.6,3501.3,2.4281]
[1721555206720,2.85589,3501.6,3501.0,3.97377253]
[1721555207047,2.85589,3501.6,3501.0,2.4844]
[1721555207203,2.85589,3501.6,3501.0,3.90772207]
[1721555210324,2.3776,3501.9,3501.0,6.76404207]
[1721555210623,2.85575,3501.7,3501.0,6.76404207]
[1721555216947,2.85575,3501.7,3501.0,5.34072]
[1721555219006,2.4172,3502.2,3501.4,2.85599]
[1721555219007,2.85544,3502.1,3501.4,2.85599]
[1721555219368,2.85544,3502.1,3501.5,2.3136]
[1721555220199,2.85541,3502.2,3501.6,2.3136]
[1721555220506,2.85548,3502.1,3501.6,2.3136]
[1721555220726,2.85552,3502.0,3501.6,2.3136]
[1721555223315,2.4172,3502.7,3501.6,2.3136]
[1721555223316,2.8554,3502.2,3501.6,2.3136]
[1721555223523,2.85524,3502.4,3501.6,2.3136]
[1721555223735,2.85512,3502.5,3501.6,2.3136]
[1721555224264,2.85527,3502.3,3501.6,2.3136]
[1721555224466,2.85536,3502.2,3501.6,2.3136]
[1721555224944,2.85543,3502.1,3501.6,2.3136]
[1721555225104,2.85551,3502.0,3501.6,2.3136]
[1721555225450,2.85567,3501.8,3501.6,2.3136]
[1721555225605,2.85551,3502.0,3501.6,2.3136]
[1721555227706,2.85536,3502.2,3501.6,2.3136]
[1721555227707,2.8556,3501.9,3501.6,2.3136]
[1721555229819,2.85547,3502.1,3501.6,2.3136]
[1721555230019,2.85536,3502.2,3501.6,2.3136]
[1721555232458,2.85552,3502.0,3501.6,2.3136]
[1721555233165,2.8554,3502.2,3501.6,2.3136]
[1721555233376,2.85558,3502.0,3501.6,2.3136]
[1721555233849,2.85559,3501.9,3501.6,2.3136]
[1721555242437,2.85543,3502.1,3501.6,2.3136]
[1721555242637,2.85564,3501.9,3501.6,2.3136]
[1721555249501,0.264357,3502.6,3501.6,2.3136]
[1721555249678,2.85538,3502.2,3501.6,2.3136]
[1721555249882,0.30038733,3502.1,3501.6,2.3136]
[1721555250962,3.15582733,3502.1,3501.6,2.3136]
[1721555251172,2.85544,3502.1,3501.6,2.3136]
[1721555258820,2.85527,3502.3,3501.6,2.3136]
[1721555259028,2.4067,3503.0,3501.9,2.85556]
[1721555259322,0.30036459,3502.8,3502.0,2.4738]
[1721555259492,0.30036459,3502.7,3502.0,2.4738]
[1721555259693,0.30036459,3502.6,3502.0,2.4738]
[1721555259894,2.4067,3503.5,3502.1,2.4738]
[1721555260098,2.85471,3503.0,3502.3,2.4738]
[1721555260306,2.85471,3503.0,3502.4,2.4738]
[1721555268023,2.8548,3502.9,3502.4,2.4738]